Workbook

Sheet PFP
A1: PROPOSTA FINANCEIRA DO PROJETO | J1: CODIGO:
J2: PFP
A3: NOME DA CONSULTORA:
A5: PROJETO: | F5: CONTRATANTE: | J5: BASE:
A6: EXECUÇÃO DE SERVIÇOS FUNDIÁRIOS E ELABORAÇÃO DE PROJETOS PARA REGULARIZAÇÃO FUNDIÁRIA DO SETOR COMERCIAL E PORTUÁRIO DO MUNICÍPIO DE SANTANA, LOCALIZADO NO ESTADO DO AMAPÁ. | F6: CODEVASF (SEDE) | J6: 2023-11-01 | L6: Encargos COMP E ADICIONAIS | Q6: Exame Ocup. | R6: Assistencia Médica | S6: Seguro de Vida
A7: Base | B7: Cod2 | C7: Cod3 | D7: Categoria / Insumo | E7: Uni | F7: Qde | G7: CUD | H7: PU | I7: FatorK | J7: CT | K7: PT | M7: Alimentação | N7: EPI | O7: Ferramenta | P7: Transporte
A8: SICRO | B8: MO2 | C8: C | D8: Advogado Sênior coordenador (P8003) | E8: mês | F8: ='CRO2_Ins-Mes'!D122 -> 10 | G8: 10130.91 | H8: =ROUND(I8*G8,2) -> 13267.44 | I8: ='PFP2.3_FatorKc'!E35 -> 1.3096 | J8: =ROUND(F8*G8,2) -> 101309.1 | K8: =ROUND(F8*H8,2) -> 132674.4 | L8: =SUM(M8:S8) -> 1027.89 | M8: 702.89 | N8: 24.8 | Q8: 3.02 | R8: 287.2 | S8: 9.98 | T8: =SUM(M8:S8) -> 1027.89
A9: SICRO | B9: MO1 | C9: P3 | D9: Advogado junior (P8001) | E9: mês | F9: ='CRO2_Ins-Mes'!D123 -> 6 | G9: 4281.78 | H9: 9238.37 | I9: ='PFP2.1_FatorKa'!$E$38 -> 2.1576 | J9: =ROUND(F9*G9,2) -> 25690.68 | K9: 55430.22 | L9: =SUM(M9:S9) -> 1027.89 | M9: 702.89 | N9: 24.8 | Q9: 3.02 | R9: 287.2 | S9: 9.98 | T9: =SUM(M9:S9) -> 1027.89
A10: SICRO | B10: MO1 | C10: P0 | D10: Engenheiro senior (P8056) | E10: mês | F10: ='CRO2_Ins-Mes'!D124 -> 8 | G10: 13314.45 | H10: =ROUND(I10*G10,2) -> 28727.26 | I10: ='PFP2.1_FatorKa'!$E$38 -> 2.1576 | J10: =ROUND(F10*G10,2) -> 106515.6 | K10: 229818.08 | L10: =SUM(M10:S10) -> 1027.51 | M10: 702.89 | N10: 24.8 | Q10: 2.64 | R10: 287.2 | S10: 9.98 | T10: =SUM(M10:S10) -> 1027.51
A11: SINAPI | B11: MO1 | C11: D | D11: Desenhista (40807) | E11: mês | F11: ='CRO2_Ins-Mes'!D125 -> 8 | G11: 2660.12 | H11: =ROUND(I11*G11,2) -> 5739.47 | I11: ='PFP2.1_FatorKa'!$E$38 -> 2.1576 | J11: =ROUND(F11*G11,2) -> 21280.96 | K11: 45915.76 | L11: =SUM(M12:S12) -> 1114.16 | T11: =SUM(M11:S11) -> 0
A12: SICRO | B12: MO1 | C12: T1 | D12: Topógrafo (P8163) | E12: mês | F12: ='CRO2_Ins-Mes'!D126 -> 8 | G12: 2290.75 | H12: 4942.52 | I12: ='PFP2.1_FatorKa'!$E$38 -> 2.1576 | J12: 18326 | K12: 39540.16 | L12: =T12 -> 1114.16 | M12: 702.89 | N12: 27.8 | P12: 81.59 | Q12: 4.7 | R12: 287.2 | S12: 9.98 | T12: =SUM(M12:S12) -> 1114.16
A13: SICRO | B13: MO1 | C13: A4 | D13: Auxiliar de Topografia (P8028) | E13: mês | F13: ='CRO2_Ins-Mes'!D127 -> 16 | G13: 1467.63 | H13: 3166.56 | I13: ='PFP2.1_FatorKa'!$E$38 -> 2.1576 | J13: 23482.08 | K13: 50664.96 | L13: =SUM(M13:S13) -> 1167.28 | M13: 702.89 | N13: 30.19 | O13: 1.35 | P13: 130.97 | Q13: 4.7 | R13: 287.2 | S13: 9.98 | T13: =SUM(M13:S13) -> 1167.28
A14: SICRO | B14: MO1 | C14: A0 | D14: Secretária (P8135) | E14: mês | F14: ='CRO2_Ins-Mes'!D128 -> 16 | G14: 2434.74 | H14: =ROUND(I14*G14,2) -> 5253.2 | I14: ='PFP2.1_FatorKa'!$E$38 -> 2.1576 | J14: =ROUND(F14*G14,2) -> 38955.84 | K14: =ROUND(F14*H14,2) -> 84051.2 | L14: 1077.17 | M14: 702.89 | P14: 72.95 | Q14: 4.15 | R14: 287.2 | S14: 9.98 | T14: 1077.17
A15: SICRO | B15: MO1 | C15: A3 | D15: Auxiliar Administrativo (P8026) | E15: mês | F15: ='CRO2_Ins-Mes'!D129 -> 16 | G15: 1772.08 | H15: 3823.44 | I15: ='PFP2.1_FatorKa'!$E$38 -> 2.1576 | J15: 28353.28 | K15: 61175.04 | L15: 1116.61 | M15: 702.89 | P15: 112.71 | Q15: 3.83 | R15: 287.2 | S15: 9.98 | T15: =SUM(M15:S15) -> 1116.61
A16: SICRO | B16: MO1 | C16: T2 | D16: Assistente Social junior (P8019) | E16: mês | F16: ='CRO2_Ins-Mes'!D130 -> 39 | G16: 3020.78 | H16: 6517.63 | I16: ='PFP2.1_FatorKa'!$E$38 -> 2.1576 | J16: 117810.42 | K16: 254187.57 | L16: 1067.35 | M16: 702.89 | N16: 24.8 | P16: 37.78 | Q16: 4.7 | R16: 287.2 | S16: 9.98 | T16: 1067.35
A17: SICRO | B17: EC | C17: ECA | D17: Encargos Comp. e Adicionais | E17: mês | F17: ='CRO1_Ins-Pro'!D14 -> 127 | G17: =(L8*F8+L9*F9+L10*F10+L11*F11+L12*F12+L13*F13+L14*F14+F15*L15+F16*L16)/F17 -> 1085.799134 | H17: 1325.98 | I17: =PFP3_FatorKd!$E$17 -> 1.2212 | J17: =ROUND(F17*G17,2) -> 137896.49 | K17: =ROUND(F17*H17,2) -> 168399.46
A18: PROP | B18: EC | C18: AT2 | D18: Auxilio Transporte Técnicos | E18: mês | F18: 0 | G18: Já incluso* | H18: 0 | I18: =PFP3_FatorKd!$E$17 -> 1.2212 | J18: 0 | K18: =ROUND(F18*H18,2) -> 0
A19: PROP | B19: EC | C19: AT3 | D19: Auxilio Transporte Secretária | E19: mês | F19: 0 | G19: Já Incluso* | H19: 0 | I19: =PFP3_FatorKd!$E$17 -> 1.2212 | J19: 0 | K19: 0
A20: CODE | B20: EM | C20: M1 | D20: Relatório Parcial | E20: un | F20: ='CRO2_Ins-Mes'!D131 -> 14 | G20: 33.35 | H20: 40.73 | I20: =PFP3_FatorKd!$E$17 -> 1.2212 | J20: 466.9 | K20: =ROUND(F20*H20,2) -> 570.22
A21: CODE | B21: EM | C21: M2 | D21: Relatório Final | E21: un | F21: ='CRO2_Ins-Mes'!D132 -> 1 | G21: 1478.8 | H21: 1805.91 | I21: =PFP3_FatorKd!$E$17 -> 1.2212 | J21: 1478.8 | K21: =ROUND(F21*H21,2) -> 1805.91
A22: TOTAL DOS CUSTOS DIRETOS | H22: =SUM(J8:J21) -> 621566.15 | M22: =J8*I8 -> 132674.3974
A23: TOTAL DOS ENCARGOS E DISPESAS DIVERSAS | H23: =H24-H22 -> 502666.83
A24: TOTAL DA PROPOSTA A PREÇO GLOBAL | H24: =SUM(K8:K21) -> 1124232.98
A25: TOTAL DA PROPOSTA | H25: =H24 -> 1124232.98
A26: OBSERVAÇÃO:
A27: *Encargos Complementares e adicionais já incluem auxílio transporte
A28: Alocar os Insumos MO, com respectivo FatorK, dentro da categoria de vínculo contratual (celetista, autonomo, societario)
A29: Uni - unidade de medição do insumo;
A30: Qde - Quantidade do Insumo (não pode ocorrer alteração pela Licitante)
A31: CUD - Custo Unitário Direto do Insumo (sem encargos, taxas e impostos, valor não pode ser maior que o Orçado pela Codevasf)
A32: CT - Custo Total (sem encargos, taxas e impostos) - CT = Qde x CUD
A33: FatorK - Taxa de Ressarcimento de Despesas e Encargos (detalhar composição nas Planilhas "PFP2.1", "PFP2.2", "PFP3")
A34: PU - Preço Unitário do Insumo (incluído encargos, taxas e impostos) - PU = CUD x FatorK
A35: PT - Preço Total do Insumo (incluído encargos, taxas e impostos) - PT = Qde x PU
A36: P - Profissionais nível superior nas áreas de Engenharia, Química, Arquitetura, Agronomia e Veterinária, conforme disposições da Lei 4.950-A/66
A37: S - Profissionais de nível superior nas demais áreas de atuação, incluindo Arqueólogo, Biólogo, Geógrafo e Sociólogo
A38: T - Profissionais de nível médio técnico nas diversas áreas de atuação
A39: A - Profissionais de nível médio de apoio técnico-administrativo
A41: Observações:
A42: 1- Sistemas oficiais de referência de preços utilizados
A43: Tabela Consultiva do DNIT-Out/2022.
A44: SINAPI/AL - 02/2023

Sheet PFP2.1_FatorKa
A1: DETALHAMENTO DOS ENCARGOS SOCIAIS: Ka | F1: CODIGO:
F2: PFP-2.1
A3: NOME DA CONSULTORA:
A5: PROJETO: | C5: CONTRATANTE: | F5: =PFP!J5 -> BASE:
A6: =PFP!A6 -> EXECUÇÃO DE SERVIÇOS FUNDIÁRIOS E ELABORAÇÃO DE PROJETOS PARA REGULARIZAÇÃO FUNDIÁRIA DO SETOR COMERCIAL E PORTUÁRIO DO MUNICÍPIO DE SANTANA, LOCALIZADO NO ESTADO DO AMAPÁ. | C6: CODEVASF (SEDE) | F6: 2023-11-01
A7: Cod | B7: DESCRIÇÃO | E7: % | F7: R$
A8: A | B8: ENCARGOS SOCIAIS BÁSICOS | E8: =ROUND(SUM(E9:E16),4) -> 0.368 | F8: =ROUND(E8*SUMIF(PFP!$B$8:$B$21,"MO1",PFP!$J$8:$J$21),2) -> 139992.67
A9: A1 | B9: INSS | E9: 0.2 | F9: =ROUND(E9*SUMIF(PFP!$B$8:$B$21,"MO1",PFP!$J$8:$J$21),2) -> 76082.97
A10: A2 | B10: SESI | E10: 0.015 | F10: =ROUND(E10*SUMIF(PFP!$B$8:$B$21,"MO1",PFP!$J$8:$J$21),2) -> 5706.22
A11: A3 | B11: SENAI | E11: 0.01 | F11: =ROUND(E11*SUMIF(PFP!$B$8:$B$21,"MO1",PFP!$J$8:$J$21),2) -> 3804.15
A12: A4 | B12: INCRA | E12: 0.002 | F12: =ROUND(E12*SUMIF(PFP!$B$8:$B$21,"MO1",PFP!$J$8:$J$21),2) -> 760.83
A13: A5 | B13: SEBRAE | E13: 0.006 | F13: =ROUND(E13*SUMIF(PFP!$B$8:$B$21,"MO1",PFP!$J$8:$J$21),2) -> 2282.49
A14: A6 | B14: Salário Educação | E14: 0.025 | F14: =ROUND(E14*SUMIF(PFP!$B$8:$B$21,"MO1",PFP!$J$8:$J$21),2) -> 9510.37
A15: A7 | B15: Seguro Contra Acidentes de Trabalho | E15: 0.03 | F15: =ROUND(E15*SUMIF(PFP!$B$8:$B$21,"MO1",PFP!$J$8:$J$21),2) -> 11412.45
A16: A8 | B16: FGTS | E16: 0.08 | F16: =ROUND(E16*SUMIF(PFP!$B$8:$B$21,"MO1",PFP!$J$8:$J$21),2) -> 30433.19
A17: B | B17: ENCARGOS SOCIAIS QUE RECEBEM INCIDÊNCIA DE "A" | E17: =ROUND(SUM(E18:E27),4) -> 0.1921 | F17: =ROUND(E17*SUMIF(PFP!$B$8:$B$21,"MO1",PFP!$J$8:$J$21),2) -> 73077.69
A18: B1 | B18: Repouso Semanal Remunerado | E18: Não incide
A19: B2 | B19: Feriados | E19: Não incide
A20: B3 | B20: Auxílio Enfermidade | E20: 0.0066 | F20: =ROUND(E20*SUMIF(PFP!$B$8:$B$21,"MO1",PFP!$J$8:$J$21),2) -> 2510.74
A21: B4 | B21: 13º Salário | E21: 0.0833 | F21: =ROUND(E21*SUMIF(PFP!$B$8:$B$21,"MO1",PFP!$J$8:$J$21),2) -> 31688.56
A22: B5 | B22: Licença Paternidade | E22: 0.0005 | F22: =ROUND(E22*SUMIF(PFP!$B$8:$B$21,"MO1",PFP!$J$8:$J$21),2) -> 190.21
A23: B6 | B23: Faltas Justificadas | E23: 0.0056 | F23: =ROUND(E23*SUMIF(PFP!$B$8:$B$21,"MO1",PFP!$J$8:$J$21),2) -> 2130.32
A24: B7 | B24: Dias de Chuvas | E24: Não incide
A25: B8 | B25: Auxílio Acidente de Trabalho | E25: 0.0008 | F25: =ROUND(E25*SUMIF(PFP!$B$8:$B$21,"MO1",PFP!$J$8:$J$21),2) -> 304.33
A26: B9 | B26: Férias Gozadas | E26: 0.095 | F26: =ROUND(E26*SUMIF(PFP!$B$8:$B$21,"MO1",PFP!$J$8:$J$21),2) -> 36139.41
A27: B10 | B27: Salário Maternidade | E27: 0.0003 | F27: =ROUND(E27*SUMIF(PFP!$B$8:$B$21,"MO1",PFP!$J$8:$J$21),2) -> 114.12
A28: C | B28: ENCARGOS SOCIAIS QUE NÃO RECEBEM INCIDÊNCIA DE "A" | E28: =ROUND(SUM(E29:E33),4) -> 0.0609 | F28: =ROUND(E28*SUMIF(PFP!$B$8:$B$21,"MO1",PFP!$J$8:$J$21),2) -> 23167.26
A29: C1 | B29: Aviso Prévio Indenizado | E29: 0.0302 | F29: =ROUND(E29*SUMIF(PFP!$B$8:$B$21,"MO1",PFP!$J$8:$J$21),2) -> 11488.53
A30: C2 | B30: Aviso Prévio Trabalhado | E30: 0.0007 | F30: =ROUND(E30*SUMIF(PFP!$B$8:$B$21,"MO1",PFP!$J$8:$J$21),2) -> 266.29
A31: C3 | B31: Férias Indenizadas | E31: 0.0121 | F31: =ROUND(E31*SUMIF(PFP!$B$8:$B$21,"MO1",PFP!$J$8:$J$21),2) -> 4603.02
A32: C4 | B32: Depósito Rescisão Sem Justa Causa | E32: 0.0154 | F32: =ROUND(E32*SUMIF(PFP!$B$8:$B$21,"MO1",PFP!$J$8:$J$21),2) -> 5858.39
A33: C5 | B33: Indenização Adicional | E33: 0.0025 | F33: =ROUND(E33*SUMIF(PFP!$B$8:$B$21,"MO1",PFP!$J$8:$J$21),2) -> 951.04
A34: D | B34: REINCIDÊNCIAS | E34: =ROUND(SUM(E35:E36),4) -> 0.0734 | F34: =ROUND(E34*SUMIF(PFP!$B$8:$B$21,"MO1",PFP!$J$8:$J$21),2) -> 27922.45
A35: D1 | B35: Reincidência de "A" sobre "B" | E35: =ROUND(E8*E17,4) -> 0.0707 | F35: =ROUND(E35*SUMIF(PFP!$B$8:$B$21,"MO1",PFP!$J$8:$J$21),2) -> 26895.33
A36: D2 | B36: Reincidência de "A" sobre Aviso Prévio Trabalhado e reincidência do FGTS sobre Aviso Prévio Indenizado | E36: =ROUND((E30*E8)+(E29*E16),4) -> 0.0027 | F36: =ROUND(E36*SUMIF(PFP!$B$8:$B$21,"MO1",PFP!$J$8:$J$21),2) -> 1027.12
A37: K1a | B37: ENCARGOS SOCIAIS | E37: =ROUND(E8+E17+E28+E34,4) -> 0.6944 | F37: =ROUND(E37*SUMIF(PFP!$B$8:$B$21,"MO1",PFP!$J$8:$J$21),2) -> 264160.08
A38: Ka | B38: TAXA DE RESSARCIMENTO DE DESPESAS E ENCARGOS SOBRE MO1 | E38: =ROUND((1+E37+PFP3_FatorKd!E13)*(1+PFP3_FatorKd!E12)*(1+PFP3_FatorKd!E8),4) -> 2.1576
A39: OBSERVAÇÃO: CELETISTAS E EQUIVALENTES
A40: 1 - DISCRIMINAR OS ENCARGOS SOCIAIS COM SEUS RESPECTIVOS PERCENTUAS TOTALIZANDO OS MESMOS.
A41: 2 - APLICAR O % TOTAL P/ CALCULAR OS E. SOCIAIS INCIDENTES NA MÃO-DE-OBRA CELETISTAS
A42: Ka - Taxa de Ressarcimento de Despesas e Encargos sobre a Mão de Obra CELETISTA (incide apenas no Insumo Codigo MO1)
A43: Ka = (1 + K1 + K2) x (1 + K3) x (1 + K4)

Sheet PFP2.2_FatorKb
A1: DETALHAMENTO DOS ENCARGOS SOCIAIS: Kb | F1: CODIGO:
F2: PFP-2.2
A3: NOME DA CONSULTORA:
A5: PROJETO: | C5: CONTRATANTE: | F5: ='PFP2.1_FatorKa'!F5 -> BASE:
A6: =PFP!A6 -> EXECUÇÃO DE SERVIÇOS FUNDIÁRIOS E ELABORAÇÃO DE PROJETOS PARA REGULARIZAÇÃO FUNDIÁRIA DO SETOR COMERCIAL E PORTUÁRIO DO MUNICÍPIO DE SANTANA, LOCALIZADO NO ESTADO DO AMAPÁ. | C6: CODEVASF (SEDE) | F6: 2023-11-01 | J6: 2023-11-01
A7: Cod | B7: DESCRIÇÃO | E7: % | F7: R$
A8: A | B8: ENCARGOS SOCIAIS BÁSICOS | E8: =ROUND(SUM(E9:E16),4) -> 0.2 | F8: =ROUND(E8*SUMIF(PFP!$B$8:$B$21,"MO2",PFP!$J$8:$J$21),2) -> 20261.82
A9: A1 | B9: INSS | E9: 0.2 | F9: =ROUND(E9*SUMIF(PFP!$B$8:$B$21,"MO2",PFP!$J$8:$J$21),2) -> 20261.82
A10: A2 | B10: SESI | E10: 0 | F10: =ROUND(E10*SUMIF(PFP!$B$8:$B$21,"MO2",PFP!$J$8:$J$21),2) -> 0
A11: A3 | B11: SENAI | E11: 0 | F11: =ROUND(E11*SUMIF(PFP!$B$8:$B$21,"MO2",PFP!$J$8:$J$21),2) -> 0
A12: A4 | B12: INCRA | E12: 0 | F12: =ROUND(E12*SUMIF(PFP!$B$8:$B$21,"MO2",PFP!$J$8:$J$21),2) -> 0
A13: A5 | B13: SEBRAE | E13: 0 | F13: =ROUND(E13*SUMIF(PFP!$B$8:$B$21,"MO2",PFP!$J$8:$J$21),2) -> 0
A14: A6 | B14: Salário Educação | E14: 0 | F14: =ROUND(E14*SUMIF(PFP!$B$8:$B$21,"MO2",PFP!$J$8:$J$21),2) -> 0
A15: A7 | B15: Seguro Contra Acidentes de Trabalho | E15: 0 | F15: =ROUND(E15*SUMIF(PFP!$B$8:$B$21,"MO2",PFP!$J$8:$J$21),2) -> 0
A16: A8 | B16: FGTS | E16: 0 | F16: =ROUND(E16*SUMIF(PFP!$B$8:$B$21,"MO2",PFP!$J$8:$J$21),2) -> 0
A17: B | B17: ENCARGOS SOCIAIS QUE RECEBEM INCIDÊNCIA DE "A" | E17: =ROUND(SUM(E18:E24),4) -> 0 | F17: =ROUND(E17*SUMIF(PFP!$B$8:$B$21,"MO2",PFP!$J$8:$J$21),2) -> 0
A18: B3 | B18: Auxílio Enfermidade | E18: 0 | F18: =ROUND(E18*SUMIF(PFP!$B$8:$B$21,"MO2",PFP!$J$8:$J$21),2) -> 0
A19: B4 | B19: 13º Salário | E19: 0 | F19: =ROUND(E19*SUMIF(PFP!$B$8:$B$21,"MO2",PFP!$J$8:$J$21),2) -> 0
A20: B5 | B20: Licença Paternidade | E20: 0 | F20: =ROUND(E20*SUMIF(PFP!$B$8:$B$21,"MO2",PFP!$J$8:$J$21),2) -> 0
A21: B6 | B21: Faltas Justificadas | E21: 0 | F21: =ROUND(E21*SUMIF(PFP!$B$8:$B$21,"MO2",PFP!$J$8:$J$21),2) -> 0
A22: B8 | B22: Auxílio Acidente de Trabalho | E22: 0 | F22: =ROUND(E22*SUMIF(PFP!$B$8:$B$21,"MO2",PFP!$J$8:$J$21),2) -> 0
A23: B9 | B23: Férias Gozadas | E23: 0 | F23: =ROUND(E23*SUMIF(PFP!$B$8:$B$21,"MO2",PFP!$J$8:$J$21),2) -> 0
A24: B10 | B24: Salário Maternidade | E24: 0 | F24: =ROUND(E24*SUMIF(PFP!$B$8:$B$21,"MO2",PFP!$J$8:$J$21),2) -> 0
A25: C | B25: ENCARGOS SOCIAIS QUE NÃO RECEBEM INCIDÊNCIA DE "A" | E25: =ROUND(SUM(E26:E30),4) -> 0 | F25: =ROUND(E25*SUMIF(PFP!$B$8:$B$21,"MO2",PFP!$J$8:$J$21),2) -> 0
A26: C1 | B26: Aviso Prévio Indenizado | E26: 0 | F26: =ROUND(E26*SUMIF(PFP!$B$8:$B$21,"MO2",PFP!$J$8:$J$21),2) -> 0
A27: C2 | B27: Aviso Prévio Trabalhado | E27: 0 | F27: =ROUND(E27*SUMIF(PFP!$B$8:$B$21,"MO2",PFP!$J$8:$J$21),2) -> 0
A28: C3 | B28: Férias Indenizadas | E28: 0 | F28: =ROUND(E28*SUMIF(PFP!$B$8:$B$21,"MO2",PFP!$J$8:$J$21),2) -> 0
A29: C4 | B29: Depósito Rescisão Sem Justa Causa | E29: 0 | F29: =ROUND(E29*SUMIF(PFP!$B$8:$B$21,"MO2",PFP!$J$8:$J$21),2) -> 0
A30: C5 | B30: Indenização Adicional | E30: 0 | F30: =ROUND(E30*SUMIF(PFP!$B$8:$B$21,"MO2",PFP!$J$8:$J$21),2) -> 0
A31: D | B31: REINCIDÊNCIAS | E31: =ROUND(SUM(E32:E33),4) -> 0 | F31: =ROUND(E31*SUMIF(PFP!$B$8:$B$21,"MO2",PFP!$J$8:$J$21),2) -> 0
A32: D1 | B32: Reincidência de "A" sobre "B" | E32: =ROUND(E8*E17,4) -> 0 | F32: =ROUND(E32*SUMIF(PFP!$B$8:$B$21,"MO2",PFP!$J$8:$J$21),2) -> 0
A33: D2 | B33: Reincidência de "A" sobre Aviso Prévio Trabalhado e reincidência do FGTS sobre Aviso Prévio Indenizado | E33: =ROUND((E27*E8)+(E26*E16),4) -> 0 | F33: =ROUND(E33*SUMIF(PFP!$B$8:$B$21,"MO2",PFP!$J$8:$J$21),2) -> 0
A34: K1b | B34: ENCARGOS SOCIAIS | E34: =ROUND(E8+E17+E25+E31,4) -> 0.2 | F34: =ROUND(E34*SUMIF(PFP!$B$8:$B$21,"MO2",PFP!$J$8:$J$21),2) -> 20261.82
A35: Kb | B35: TAXA DE RESSARCIMENTO DE DESPESAS E ENCARGOS SOBRE MO2 | E35: =ROUND((1+E34+PFP3_FatorKd!E13)*(1+PFP3_FatorKd!E12)*(1+PFP3_FatorKd!E8),4) -> 1.5538
A36: OBSERVAÇÃO: AUTÔNOMOS E EQUIVALENTES
A37: 1 - DISCRIMINAR OS ENCARGOS SOCIAIS COM SEUS RESPECTIVOS PERCENTUAS TOTALIZANDO OS MESMOS.
A38: 2 - APLICAR O % TOTAL P/ CALCULAR OS E. SOCIAIS INCIDENTES NA MÃO-DE-OBRA AUTONÔMOS
A39: Kb - Taxa de Ressarcimento de Despesas e Encargos sobre a Mão de Obra AUTONÔMA (incide apenas no Insumo Codigo MO2)
A40: Kb = (1 + K1 + K2) x (1 + K3) x (1 + K4)

Sheet PFP2.3_FatorKc
A1: DETALHAMENTO DOS ENCARGOS SOCIAIS: Kc | F1: CODIGO:
F2: PFP-2.3
A3: NOME DA CONSULTORA:
A5: PROJETO: | C5: CONTRATANTE: | F5: ='PFP2.2_FatorKb'!F5 -> BASE:
A6: =PFP!A6 -> EXECUÇÃO DE SERVIÇOS FUNDIÁRIOS E ELABORAÇÃO DE PROJETOS PARA REGULARIZAÇÃO FUNDIÁRIA DO SETOR COMERCIAL E PORTUÁRIO DO MUNICÍPIO DE SANTANA, LOCALIZADO NO ESTADO DO AMAPÁ. | C6: CODEVASF (SEDE) | F6: 2023-11-01 | J6: 2023-11-01
A7: Cod | B7: DESCRIÇÃO | E7: % | F7: R$
A8: A | B8: ENCARGOS SOCIAIS BÁSICOS | E8: =SUM(E9:E16) -> 0 | F8: =ROUND(E8*SUMIF(PFP!$B$8:$B$21,"MO3",PFP!$J$8:$J$21),2) -> 0
A9: A1 | B9: INSS | E9: 0 | F9: =ROUND(E9*SUMIF(PFP!$B$8:$B$21,"MO3",PFP!$J$8:$J$21),2) -> 0
A10: A2 | B10: SESI | E10: 0 | F10: =ROUND(E10*SUMIF(PFP!$B$8:$B$21,"MO3",PFP!$J$8:$J$21),2) -> 0
A11: A3 | B11: SENAI | E11: 0 | F11: =ROUND(E11*SUMIF(PFP!$B$8:$B$21,"MO3",PFP!$J$8:$J$21),2) -> 0
A12: A4 | B12: INCRA | E12: 0 | F12: =ROUND(E12*SUMIF(PFP!$B$8:$B$21,"MO3",PFP!$J$8:$J$21),2) -> 0
A13: A5 | B13: SEBRAE | E13: 0 | F13: =ROUND(E13*SUMIF(PFP!$B$8:$B$21,"MO3",PFP!$J$8:$J$21),2) -> 0
A14: A6 | B14: Salário Educação | E14: 0 | F14: =ROUND(E14*SUMIF(PFP!$B$8:$B$21,"MO3",PFP!$J$8:$J$21),2) -> 0
A15: A7 | B15: Seguro Contra Acidentes de Trabalho | E15: 0 | F15: =ROUND(E15*SUMIF(PFP!$B$8:$B$21,"MO3",PFP!$J$8:$J$21),2) -> 0
A16: A8 | B16: FGTS | E16: 0 | F16: =ROUND(E16*SUMIF(PFP!$B$8:$B$21,"MO3",PFP!$J$8:$J$21),2) -> 0
A17: B | B17: ENCARGOS SOCIAIS QUE RECEBEM INCIDÊNCIA DE "A" | E17: =ROUND(SUM(E18:E24),4) -> 0 | F17: =ROUND(E17*SUMIF(PFP!$B$8:$B$21,"MO3",PFP!$J$8:$J$21),2) -> 0
A18: B3 | B18: Auxílio Enfermidade | E18: 0 | F18: =ROUND(E18*SUMIF(PFP!$B$8:$B$21,"MO3",PFP!$J$8:$J$21),2) -> 0
A19: B4 | B19: 13º Salário | E19: 0 | F19: =ROUND(E19*SUMIF(PFP!$B$8:$B$21,"MO3",PFP!$J$8:$J$21),2) -> 0
A20: B5 | B20: Licença Paternidade | E20: 0 | F20: =ROUND(E20*SUMIF(PFP!$B$8:$B$21,"MO3",PFP!$J$8:$J$21),2) -> 0
A21: B6 | B21: Faltas Justificadas | E21: 0 | F21: =ROUND(E21*SUMIF(PFP!$B$8:$B$21,"MO3",PFP!$J$8:$J$21),2) -> 0
A22: B8 | B22: Auxílio Acidente de Trabalho | E22: 0 | F22: =ROUND(E22*SUMIF(PFP!$B$8:$B$21,"MO3",PFP!$J$8:$J$21),2) -> 0
A23: B9 | B23: Férias Gozadas | E23: 0 | F23: =ROUND(E23*SUMIF(PFP!$B$8:$B$21,"MO3",PFP!$J$8:$J$21),2) -> 0
A24: B10 | B24: Salário Maternidade | E24: 0 | F24: =ROUND(E24*SUMIF(PFP!$B$8:$B$21,"MO3",PFP!$J$8:$J$21),2) -> 0
A25: C | B25: ENCARGOS SOCIAIS QUE NÃO RECEBEM INCIDÊNCIA DE "A" | E25: =ROUND(SUM(E26:E30),4) -> 0 | F25: =ROUND(E25*SUMIF(PFP!$B$8:$B$21,"MO3",PFP!$J$8:$J$21),2) -> 0
A26: C1 | B26: Aviso Prévio Indenizado | E26: 0 | F26: =ROUND(E26*SUMIF(PFP!$B$8:$B$21,"MO3",PFP!$J$8:$J$21),2) -> 0
A27: C2 | B27: Aviso Prévio Trabalhado | E27: 0 | F27: =ROUND(E27*SUMIF(PFP!$B$8:$B$21,"MO3",PFP!$J$8:$J$21),2) -> 0
A28: C3 | B28: Férias Indenizadas | E28: 0 | F28: =ROUND(E28*SUMIF(PFP!$B$8:$B$21,"MO3",PFP!$J$8:$J$21),2) -> 0
A29: C4 | B29: Depósito Rescisão Sem Justa Causa | E29: 0 | F29: =ROUND(E29*SUMIF(PFP!$B$8:$B$21,"MO3",PFP!$J$8:$J$21),2) -> 0
A30: C5 | B30: Indenização Adicional | E30: 0 | F30: =ROUND(E30*SUMIF(PFP!$B$8:$B$21,"MO3",PFP!$J$8:$J$21),2) -> 0
A31: D | B31: REINCIDÊNCIAS | E31: =ROUND(SUM(E32:E33),4) -> 0 | F31: =ROUND(E31*SUMIF(PFP!$B$8:$B$21,"MO3",PFP!$J$8:$J$21),2) -> 0
A32: D1 | B32: Reincidência de "A" sobre "B" | E32: =ROUND(E8*E17,4) -> 0 | F32: =ROUND(E32*SUMIF(PFP!$B$8:$B$21,"MO3",PFP!$J$8:$J$21),2) -> 0
A33: D2 | B33: Reincidência de "A" sobre Aviso Prévio Trabalhado e reincidência do FGTS sobre Aviso Prévio Indenizado | E33: =ROUND(E8*E27,4)+ROUND(E26*E11,4) -> 0 | F33: =ROUND(E33*SUMIF(PFP!$B$8:$B$21,"MO3",PFP!$J$8:$J$21),2) -> 0
A34: K1c | B34: ENCARGOS SOCIAIS | E34: =ROUND(E8+E17+E25+E31,4) -> 0 | F34: =ROUND(E34*SUMIF(PFP!$B$8:$B$21,"MO3",PFP!$J$8:$J$21),2) -> 0
A35: Kc | B35: TAXA DE RESSARCIMENTO DE DESPESAS E ENCARGOS SOBRE MO3 | E35: =ROUND((1+E34+PFP3_FatorKd!E13)*(1+PFP3_FatorKd!E12)*(1+PFP3_FatorKd!E8),4) -> 1.3096
A36: OBSERVAÇÃO: SOCIETÁRIOS E EQUIVALENTES
A37: 1 - DISCRIMINAR OS ENCARGOS SOCIAIS COM SEUS RESPECTIVOS PERCENTUAS TOTALIZANDO OS MESMOS.
A38: 2 - APLICAR O % TOTAL P/ CALCULAR OS E. SOCIAIS INCIDENTES NA MÃO-DE-OBRA DE SOCIETÁRIOS
A39: Kc - Taxa de Ressarcimento de Despesas e Encargos sobre a Mão de Obra SOCIETÁRIA (incide apenas no Insumo Codigo MO3)
A40: Kc = (1 + K1 + K2) x (1 + K3) x (1 + K4)

Sheet PFP3_FatorKd
A1: DESPESAS FISCAIS E CUSTOS DIVERSOS: Kc | F1: CODIGO:
F2: PFP-3
A3: NOME DA CONSULTORA:
A5: PROJETO: | C5: CONTRATANTE: | F5: ='PFP2.3_FatorKc'!F5 -> BASE:
A6: =PFP!A6 -> EXECUÇÃO DE SERVIÇOS FUNDIÁRIOS E ELABORAÇÃO DE PROJETOS PARA REGULARIZAÇÃO FUNDIÁRIA DO SETOR COMERCIAL E PORTUÁRIO DO MUNICÍPIO DE SANTANA, LOCALIZADO NO ESTADO DO AMAPÁ. | C6: CODEVASF (SEDE) | F6: 2023-11-01
A7: Cod | B7: DESCRIÇÃO1 | D7: % preço2 | E7: % custo4 | F7: R$
A8: K4 | B8: TRIBUTOS | D8: =ROUND(D9+D10+D11,4) -> 0.1225 | E8: =ROUND(E9+E10+E11,4) -> 0.1413 | F8: =E8*SUM(SUMIF(PFP!$B$8:$B$21,"MO1",PFP!$J$8:$J$21)*(1+'PFP2.1_FatorKa'!$E$37)+SUMIF(PFP!$B$8:$B$21,"MO2",PFP!$J$8:$J$21)*(1+'PFP2.2_FatorKb'!$E$34)+SUMIF(PFP!$B$8:$B$21,"<>MO*",PFP!$J$8:$J$21)+$F$13+$F$12) -> 142250.2989
A9: K4.1 | B9: ISS | D9: 0.03 | E9: 0.0335 | F9: =E9*SUM(SUMIF(PFP!$B$8:$B$21,"MO1",PFP!$J$8:$J$21)*(1+'PFP2.1_FatorKa'!$E$37)+SUMIF(PFP!$B$8:$B$21,"MO2",PFP!$J$8:$J$21)*(1+'PFP2.2_FatorKb'!$E$34)+SUMIF(PFP!$B$8:$B$21,"<>MO*",PFP!$J$8:$J$21)+$F$13+$F$12) -> 33725.30086
A10: K4.2 | B10: PIS3 - aliquota efetiva aplicavel percentual-desconto | D10: 0.0165 | E10: 0.0192 | F10: =E10*SUM(SUMIF(PFP!$B$8:$B$21,"MO1",PFP!$J$8:$J$21)*(1+'PFP2.1_FatorKa'!$E$37)+SUMIF(PFP!$B$8:$B$21,"MO2",PFP!$J$8:$J$21)*(1+'PFP2.2_FatorKb'!$E$34)+SUMIF(PFP!$B$8:$B$21,"<>MO*",PFP!$J$8:$J$21)+$F$13+$F$12) -> 19329.12766
A11: K4.3 | B11: COFINS3 - aliquota efetiva aplicavel percentual-desconto | D11: 0.076 | E11: 0.0886 | F11: =E11*SUM(SUMIF(PFP!$B$8:$B$21,"MO1",PFP!$J$8:$J$21)*(1+'PFP2.1_FatorKa'!$E$37)+SUMIF(PFP!$B$8:$B$21,"MO2",PFP!$J$8:$J$21)*(1+'PFP2.2_FatorKb'!$E$34)+SUMIF(PFP!$B$8:$B$21,"<>MO*",PFP!$J$8:$J$21)+$F$13+$F$12) -> 89195.87034
A12: K3 | B12: REMUNERAÇÃO DA EMPRESA (LUCRO) | E12: 0.07 | F12: =E12*SUM(SUMIF(PFP!$B$8:$B$21,"MO1",PFP!$J$8:$J$21)*(1+'PFP2.1_FatorKa'!$E$37)+SUMIF(PFP!$B$8:$B$21,"MO2",PFP!$J$8:$J$21)*(1+'PFP2.2_FatorKb'!$E$34)+SUMIF(PFP!$B$8:$B$21,"<>MO*",PFP!$J$8:$J$21)+$F$13) -> 65860.54011
A13: K2 | B13: CUSTOS DA ADMINISTRAÇÃO CENTRAL | E13: =ROUND(SUM(E14:E16),4) -> 0.0724 | F13: =ROUND(E13*SUMIF(PFP!$B$8:$B$21,"MO*",PFP!$J$8:$J$21),2) -> 34876.81
A14: K2.1 | B14: Custos da administração central da empresa (diretoria, pessoal técnico de apoio e pessoal administrativo não diretamente vinculado à prestação dos serviços) | E14: 0.04 | F14: =ROUND(E14*SUMIF(PFP!$B$8:$B$21,"MO*",PFP!$J$8:$J$21),2) -> 19268.96
A15: K2.2 | B15: Outras despesas que afetam o custo de produção como treinamento, biblioteca, programa de qualidade, programa de benefícios, auditoria interna e externa | E15: 0.02 | F15: =ROUND(E15*SUMIF(PFP!$B$8:$B$21,"MO*",PFP!$J$8:$J$21),2) -> 9634.48
A16: K2.3 | B16: Despesas fixas e variaveis com patrimônio, aluguéis, comunicação, manutenção e transporte não diretamente relacionados com o custo direto dos serviços | E16: 0.0124 | F16: =ROUND(E16*SUMIF(PFP!$B$8:$B$21,"MO*",PFP!$J$8:$J$21),2) -> 5973.38
A17: Kd | B17: TAXA RESSARCIMENTO DE DESPESAS SOBRE CUSTOS DIVERSOS | E17: =ROUND((1+E12)*(1+E8),4) -> 1.2212
A18: NOME DO INFORMANTE: | E18: QUALIFICAÇÃO:
A20: ASSINATURA: | E20: DATA:
A22: Observação:
A23: 1 - RELACIONAR OS CUSTOS DE ADMINISTRAÇÃO COM RESPECTIVOS PERCENTUAIS INCIDENTES NA MÃO -DE-OBRA
A24: 1 - DISCRIMINAR OS TRIBUTOS QUE INCIDEM SOBRE OS CUSTOS DA PRESTAÇÃO DOS SERVIÇOS
A25: 2 - K4 = INDICAR % DE CADA TRIBUTO E A SOMA DOS MESMOS (ex: ISS 5% + PIS 1,65% + COFINS 7,60% = 14,25%)
A26: 3 - PIS e COFINS, Regime de Incidencia Acumulativa (0,65% e 3,00% - sem percentual de desconto) ou em Regime de Incidencia Não Acumulativa (1,65% e 7,60% - aplicável percentual de desconto) de acordo com a forma de apuração do lucro no IRPJ. APRESENTAR COMPROVANTES de aproveitamento de créditos tributários dos últimos 12 meses em caso de aplicação de "percentual de desconto".
A27: 4 - AS DESPESAS FISCAIS (K4) INCIDEM SOBRE O TOTAL DA FATURA E NÃO SOBRE OS CUSTOS INCORRIDOS,
A28: DEVENDO SER CALCULADO O K4' APLICANDO-SE A SEGUINTE FÓRMULA:
A29: K4' = { [ 1 / ( 1 - K4) ] - 1 } x 100
A30: =CONCATENATE(" K4' = { [ 1 / ( 1 - ",D8," ) ] - 1 } x 100") -> K4' = { [ 1 / ( 1 - 0,1225 ) ] - 1 } x 100
A31: Kc - Taxa de Ressarcimento de Despesas sobre Custos Diversos (incide sobre os Insumos Codigo DP e EM)
A32: Kc = (1 + K3) x (1 + K4)
A33: K2 - Incide sobre o Custo Total (CT) da Mão de Obra (MO* = MO1 + MO2)
A34: K3 - Incide sobre o Custo Total (CT) Mão de Obra com encargos (MO1 x Ka ou MO2 x Kb), demais Custos (DP e EM), e Custos da Administração Central (K2)
A35: K4 - Incide sobre o Custo Total (CT) Mão de Obra com encargos (MO1 x Ka ou MO2 x Kb), demais Custos (DP e EM), e Custos da Administração Central (K2) e Lucro (K3)

Sheet CRO1_Ins-Pro
A1: INSUMOS POR ETAPA/PRODUTO | N1: CÓDIGO:
N2: CRO-1
A3: Cod. | B3: Categoria / Insumo | C3: Uni | D3: Qde | E3: CUD | F3: PU | G3: FatorK | H3: ETAPA 1 | I3: ETAPA 2 | J3: ETAPA 3 | K3: ETAPA 4 | L3: ETAPA 5 | M3: ETAPA 6 | N3: ETAPA 7 | O3: ETAPA 8
G4: Meses | H4: ='CRO2_Ins-Mes'!E4 -> 1 | I4: ='CRO2_Ins-Mes'!E5 -> 2 | J4: ='CRO2_Ins-Mes'!E6 -> 2 | K4: ='CRO2_Ins-Mes'!E7 -> 2 | L4: ='CRO2_Ins-Mes'!E8 -> 2 | M4: ='CRO2_Ins-Mes'!E9 -> 3 | N4: ='CRO2_Ins-Mes'!E10 -> 5 | O4: ='CRO2_Ins-Mes'!E11 -> 5
A5: =PFP!C8 -> C | B5: =PFP!D8 -> Advogado Sênior coordenador (P8003) | C5: mês | D5: =PFP!F8 -> 10 | E5: =PFP!G8 -> 10130.91 | F5: =PFP!H8 -> 13267.44 | G5: =PFP!I8 -> 1.3096 | H5: ='CRO2_Ins-Mes'!E15 -> 0.5 | I5: ='CRO2_Ins-Mes'!E28 -> 0.75 | J5: ='CRO2_Ins-Mes'!E41 -> 0.5 | K5: ='CRO2_Ins-Mes'!E54 -> 0.375 | L5: ='CRO2_Ins-Mes'!E67 -> 0.375 | M5: ='CRO2_Ins-Mes'!E80 -> 0.5 | N5: ='CRO2_Ins-Mes'!E93 -> 3.5 | O5: ='CRO2_Ins-Mes'!E106 -> 3.5 | P5: =H5+K5+L5+M5+N5 -> 5.25 | Q5: =D5*F5 -> 132674.4 | R5: =$Q5*0.2 -> 26534.88 | S5: =$Q5*0.2 -> 26534.88 | T5: 26534.88 | U5: 26534.88 | V5: 26534.88 | W5: =R5+S5+T5+U5+V5 -> 132674.4
A6: =PFP!C9 -> P3 | B6: =PFP!D9 -> Advogado junior (P8001) | C6: mês | D6: =PFP!F9 -> 6 | E6: =PFP!G9 -> 4281.78 | F6: =PFP!H9 -> 9238.37 | G6: =PFP!I9 -> 2.1576 | H6: ='CRO2_Ins-Mes'!E16 -> 0 | I6: ='CRO2_Ins-Mes'!E29 -> 1 | J6: 0 | K6: ='CRO2_Ins-Mes'!E55 -> 0.5 | L6: ='CRO2_Ins-Mes'!E68 -> 0 | M6: ='CRO2_Ins-Mes'!E81 -> 0.75 | N6: ='CRO2_Ins-Mes'!E94 -> 2.5 | O6: ='CRO2_Ins-Mes'!E107 -> 1.25 | P6: =H6+K6+L6+M6+N6 -> 3.75 | Q6: =D6*F6 -> 55430.22 | R6: =$Q6*0.2 -> 11086.044 | S6: 11086.044 | T6: 11086.044 | U6: 11086.044 | V6: 11086.044
A7: =PFP!C10 -> P0 | B7: =PFP!D10 -> Engenheiro senior (P8056) | C7: mês | D7: =PFP!F10 -> 8 | E7: =PFP!G10 -> 13314.45 | F7: =PFP!H10 -> 28727.26 | G7: =PFP!I10 -> 2.1576 | H7: ='CRO2_Ins-Mes'!E17 -> 0 | I7: ='CRO2_Ins-Mes'!E30 -> 1 | J7: ='CRO2_Ins-Mes'!E43 -> 1 | K7: ='CRO2_Ins-Mes'!E56 -> 1 | L7: ='CRO2_Ins-Mes'!E69 -> 1 | M7: ='CRO2_Ins-Mes'!E82 -> 0 | N7: ='CRO2_Ins-Mes'!E95 -> 4 | O7: ='CRO2_Ins-Mes'!E108 -> 0 | P7: 6 | Q7: 229818.08 | R7: 45963.616 | S7: 45963.616 | T7: 45963.616 | U7: 45963.616 | V7: 45963.616
A8: =PFP!C11 -> D | B8: =PFP!D11 -> Desenhista (40807) | C8: mês | D8: =PFP!F11 -> 8 | E8: =PFP!G11 -> 2660.12 | F8: =PFP!H11 -> 5739.47 | G8: =PFP!I11 -> 2.1576 | H8: ='CRO2_Ins-Mes'!E18 -> 0 | I8: ='CRO2_Ins-Mes'!E31 -> 1 | J8: ='CRO2_Ins-Mes'!E44 -> 1 | K8: ='CRO2_Ins-Mes'!E57 -> 1 | L8: ='CRO2_Ins-Mes'!E70 -> 1 | M8: ='CRO2_Ins-Mes'!E83 -> 0 | N8: ='CRO2_Ins-Mes'!E96 -> 4 | O8: ='CRO2_Ins-Mes'!E109 -> 0 | P8: 6 | Q8: 45915.76 | R8: 9183.152 | S8: 9183.152 | T8: 9183.152 | U8: 9183.152 | V8: 9183.152
A9: =PFP!C12 -> T1 | B9: =PFP!D12 -> Topógrafo (P8163) | C9: mês | D9: =PFP!F12 -> 8 | E9: =PFP!G12 -> 2290.75 | F9: =PFP!H12 -> 4942.52 | G9: =PFP!I12 -> 2.1576 | H9: ='CRO2_Ins-Mes'!E19 -> 0 | I9: ='CRO2_Ins-Mes'!E32 -> 1 | J9: ='CRO2_Ins-Mes'!E45 -> 1 | K9: ='CRO2_Ins-Mes'!E58 -> 1 | L9: ='CRO2_Ins-Mes'!E71 -> 1 | M9: ='CRO2_Ins-Mes'!E84 -> 0 | N9: ='CRO2_Ins-Mes'!E97 -> 4 | O9: ='CRO2_Ins-Mes'!E110 -> 0 | P9: 6 | Q9: 39540.16 | R9: 7908.032 | S9: 7908.032 | T9: 7908.032 | U9: 7908.032 | V9: 7908.032
A10: =PFP!C13 -> A4 | B10: =PFP!D13 -> Auxiliar de Topografia (P8028) | C10: mês | D10: =PFP!F13 -> 16 | E10: =PFP!G13 -> 1467.63 | F10: =PFP!H13 -> 3166.56 | G10: =PFP!I13 -> 2.1576 | H10: ='CRO2_Ins-Mes'!E20 -> 0 | I10: ='CRO2_Ins-Mes'!E33 -> 2 | J10: ='CRO2_Ins-Mes'!E46 -> 2 | K10: ='CRO2_Ins-Mes'!E59 -> 2 | L10: ='CRO2_Ins-Mes'!E72 -> 2 | M10: ='CRO2_Ins-Mes'!E85 -> 0 | N10: ='CRO2_Ins-Mes'!E98 -> 8 | O10: ='CRO2_Ins-Mes'!E111 -> 0 | P10: 12 | Q10: 50664.96 | R10: 10132.992 | S10: 10132.992 | T10: 10132.992 | U10: 10132.992 | V10: 10132.992
A11: =PFP!C14 -> A0 | B11: =PFP!D14 -> Secretária (P8135) | C11: mês | D11: =PFP!F14 -> 16 | E11: =PFP!G14 -> 2434.74 | F11: =PFP!H14 -> 5253.2 | G11: =PFP!I14 -> 2.1576 | H11: ='CRO2_Ins-Mes'!E21 -> 1 | I11: ='CRO2_Ins-Mes'!E34 -> 1.5 | J11: ='CRO2_Ins-Mes'!E47 -> 1 | K11: ='CRO2_Ins-Mes'!E60 -> 0.75 | L11: ='CRO2_Ins-Mes'!E73 -> 0.75 | M11: ='CRO2_Ins-Mes'!E86 -> 1 | N11: ='CRO2_Ins-Mes'!E99 -> 5 | O11: ='CRO2_Ins-Mes'!E112 -> 5 | P11: 8.5 | Q11: 84051.2 | R11: 16810.24 | S11: 16810.24 | T11: 16810.24 | U11: 16810.24 | V11: 16810.24
A12: =PFP!C15 -> A3 | B12: =PFP!D15 -> Auxiliar Administrativo (P8026) | C12: mês | D12: =PFP!F15 -> 16 | E12: =PFP!G15 -> 1772.08 | F12: =PFP!H15 -> 3823.44 | G12: =PFP!I15 -> 2.1576 | H12: ='CRO2_Ins-Mes'!E22 -> 1 | I12: ='CRO2_Ins-Mes'!E35 -> 1.5 | J12: ='CRO2_Ins-Mes'!E48 -> 1 | K12: ='CRO2_Ins-Mes'!E61 -> 0.75 | L12: ='CRO2_Ins-Mes'!E74 -> 0.75 | M12: ='CRO2_Ins-Mes'!E87 -> 1 | N12: ='CRO2_Ins-Mes'!E100 -> 5 | O12: ='CRO2_Ins-Mes'!E113 -> 5 | P12: 8.5 | Q12: 61175.04 | R12: 12235.008 | S12: 12235.008 | T12: 12235.008 | U12: 12235.008 | V12: 12235.008
A13: =PFP!C16 -> T2 | B13: =PFP!D16 -> Assistente Social junior (P8019) | C13: mês | D13: =PFP!F16 -> 39 | E13: =PFP!G16 -> 3020.78 | F13: =PFP!H16 -> 6517.63 | G13: =PFP!I16 -> 2.1576 | H13: ='CRO2_Ins-Mes'!E23 -> 5 | I13: ='CRO2_Ins-Mes'!E36 -> 10 | J13: ='CRO2_Ins-Mes'!E49 -> 0 | K13: ='CRO2_Ins-Mes'!E62 -> 4 | L13: ='CRO2_Ins-Mes'!E75 -> 0 | M13: ='CRO2_Ins-Mes'!E88 -> 15 | N13: ='CRO2_Ins-Mes'!E101 -> 5 | O13: ='CRO2_Ins-Mes'!E114 -> 0 | P13: 29 | Q13: 254187.57 | R13: 50837.514 | S13: 50837.514 | T13: 50837.514 | U13: 50837.514 | V13: 50837.514
A14: =PFP!C17 -> ECA | B14: =PFP!D17 -> Encargos Comp. e Adicionais | C14: mês | D14: =SUM(H14:O14) -> 127 | E14: =PFP!G17 -> 1085.799134 | F14: =PFP!H17 -> 1325.98 | G14: =PFP!I17 -> 1.2212 | H14: =SUM(H5:H13) -> 7.5 | I14: =SUM(I5:I13) -> 19.75 | J14: 7.5 | K14: 11.375 | L14: 6.875 | M14: 18.25 | N14: 41 | O14: 14.75 | P14: 85 | Q14: 168399.46 | R14: 33679.892 | S14: 33679.892 | T14: 33679.892 | U14: 33679.892 | V14: 33679.892 | W14: =H14+I14+J14+K14+L14+M14+N14+O14 -> 127
A15: =PFP!C18 -> AT2 | B15: =PFP!D18 -> Auxilio Transporte Técnicos | C15: mês | D15: =SUM(H15:O15) -> 0 | E15: =PFP!G18 -> Já incluso* | F15: =PFP!H18 -> 0 | G15: =PFP!I18 -> 1.2212 | P15: 0 | Q15: 0 | R15: 0 | S15: 0 | T15: 0 | U15: 0 | V15: 0
A16: =PFP!C19 -> AT3 | B16: =PFP!D19 -> Auxilio Transporte Secretária | C16: mês | D16: 0 | E16: =PFP!G19 -> Já Incluso* | F16: =PFP!H19 -> 0 | G16: =PFP!I19 -> 1.2212 | P16: 0 | Q16: 0 | R16: 0 | S16: 0 | T16: 0 | U16: 0 | V16: 0
A17: =PFP!C20 -> M1 | B17: =PFP!D20 -> Relatório Parcial | C17: un | D17: 14 | E17: =PFP!G20 -> 33.35 | F17: =PFP!H20 -> 40.73 | G17: =PFP!I20 -> 1.2212 | H17: ='CRO2_Ins-Mes'!E24 -> 0 | I17: ='CRO2_Ins-Mes'!E37 -> 1 | J17: ='CRO2_Ins-Mes'!E50 -> 1 | K17: ='CRO2_Ins-Mes'!E63 -> 1 | L17: ='CRO2_Ins-Mes'!E76 -> 1 | M17: ='CRO2_Ins-Mes'!E89 -> 2 | N17: ='CRO2_Ins-Mes'!E102 -> 4 | O17: ='CRO2_Ins-Mes'!E115 -> 4 | P17: 8 | Q17: 570.22 | R17: 114.044 | S17: 114.044 | T17: 114.044 | U17: 114.044 | V17: 114.044
A18: =PFP!C21 -> M2 | B18: =PFP!D21 -> Relatório Final | C18: un | D18: 1 | E18: =PFP!G21 -> 1478.8 | F18: =PFP!H21 -> 1805.91 | G18: =PFP!I21 -> 1.2212 | O18: ='CRO2_Ins-Mes'!E116 -> 1 | P18: 0 | Q18: 1805.91 | R18: 361.182 | S18: 361.182 | T18: 361.182 | U18: 361.182 | V18: 361.182
A19: TOTAL | B19: VALOR TOTAL POR PRODUTO | C19: R$ | D19: =W19 -> 1124232.98 | H19: =ROUND($F$5*H5+$F$6*H6+$F$7*H7+$F$8*H8+$F$9*H9+$F$10*H10+$F$11*H11+$F$12*H12+$F$13*H13+$F$14*H14+$F$15*H15+$F$16*H16+$F$17*H17+$F$18*H18,2) -> 58243.36 | I19: 169951.42 | J19: 71438.31 | K19: 103338.6 | L19: 66681.98 | M19: 144684.18 | N19: 385000.9 | O19: 124894.24 | Q19: =SUM(Q5:Q18) -> 1124232.98 | R19: =SUM(R5:R18) -> 224846.596 | S19: =SUM(S5:S18) -> 224846.596 | T19: 224846.596 | U19: 224846.596 | V19: 224846.596 | W19: =SUM(R19:V19) -> 1124232.98
C20: % | D20: =SUM(H20:O20) -> 1 | H20: =H19/SUM($H$19:$O$19) -> 0.05180719701 | I20: 0.1511709953 | J20: 0.06354404348 | K20: 0.09191920262 | L20: 0.05931331014 | M20: 0.1286959032 | N20: 0.3424565045 | O20: 0.1110928438 | P20: =H20+I20+J20+K20+L20+M20+N20+O20 -> 1 | R20: =R19/$Q$19 -> 0.2 | S20: =S19/$Q$19 -> 0.2 | T20: 0.2 | U20: 0.2 | V20: 0.2 | W20: =W19/$Q$19 -> 1
A83: OBSERVAÇÃO:
A84: P - Profissionais nível superior nas áreas de Engenharia, Química, Arquitetura, Agronomia e Veterinária, conforme disposições da Lei 4.950-A/66
A85: T - Profissionais de nível médio técnico nas diversas áreas de atuação
A86: A - Profissionais de nível médio de apoio técnico-administrativo

Sheet CRO2_Ins-Mes
A1: CRONOGRAMA SIMPLIFICADO
A3: Cod1 | B3: Cod2 | C3: Produtos | D3: Uni | E3: Qde | F3: 1 | G3: 2 | H3: 3 | I3: 4 | J3: 5 | K3: 6 | L3: 7 | M3: 8 | N3: 9 | O3: 10 | P3: 11 | Q3: 12 | R3: 13 | S3: 14 | T3: 15 | U3: 16
A4: 1 | B4: 1 | C4: Etapa 1 – Tarefas Preparatórias | D4: mês | E4: 1
A5: 2 | B5: 2 | C5: Etapa 2 - Cadastro físico, jurídico e social das terras e benfeitorias | D5: mês | E5: 2
A6: 3 | B6: 3 | C6: Etapa 3 – Avaliação das terras e benfeitorias levantadas na etapa 2 | D6: mês | E6: 2 | J6: 2023-11-01
A7: 4 | B7: 4 | C7: Etapa 4 - Cadastro físico, jurídico e social de terras para possíveis remanejamentos | D7: mês | E7: 2
A8: 5 | B8: 5 | C8: Etapa 5 - Avaliação das terras e benfeitorias levantadas na etapa 4 | D8: mês | E8: 2
A9: 6 | B9: 6 | C9: Etapa 6 - Cadastro socioeconômico da região | D9: mês | E9: 3
A10: 7 | B10: 7 | C10: Etapa 7 - Plano de Negociação e Projeto Executivo de Remanejamento da População Local | D10: mês | E10: 5
A11: 8 | B11: 8 | C11: Etapa 8 - Operação das ações sociais e de regularização fundiária | D11: mês | E11: 5
A12: Total | B12: Total | C12: Balanço Temporal | D12: mês | E12: =SUM(F12:R12) -> 0
A14: Cod1 | B14: Cod2 | C14: Insumos | D14: Uni | E14: Qde | F14: 1 | G14: 2 | H14: 3 | I14: 4 | J14: 5 | K14: 6 | L14: 7 | M14: 8 | N14: 9 | O14: 10 | P14: 11 | Q14: 12 | R14: 13 | S14: 14 | T14: 15 | U14: 16
A15: 1 | B15: C | C15: Advogado coordenador (P8061) | D15: mês | E15: =SUM(F15:U15) -> 0.5 | F15: 0.5
A16: 1 | B16: P3 | C16: Advogado junior (P8001) | D16: mês | E16: =SUM(F16:U16) -> 0
A17: 1 | B17: P0 | C17: Engenheiro senior (P8056) | D17: mês | E17: 0
A18: 1 | B18: D | C18: Desenhista (40807) | D18: mês | E18: 0
A19: 1 | B19: T1 | C19: Topógrafo (P8163) | D19: mês | E19: 0
A20: 1 | B20: A4 | C20: Auxiliar de Topografia (P8028) | D20: mês | E20: 0
A21: 1 | B21: A0 | C21: Secretária (P8135) | D21: mês | E21: 1 | F21: 1
A22: 1 | B22: A3 | C22: Auxiliar Administrativo (P8026) | D22: mês | E22: 1 | F22: 1
A23: 1 | B23: T2 | C23: Assistente Social junior (P8019) | D23: mês | E23: 5 | F23: 5
A24: 1 | B24: M1 | C24: Relatório Parcial | D24: un | E24: 0
A25: 1 | B25: M2 | C25: Relatório Final | D25: un | E25: 0 | F25: 0
A26: 1 | C26: =C4 -> Etapa 1 – Tarefas Preparatórias | E26: =SUM(E15:E25) -> 7.5
A28: 2 | B28: C | C28: Advogado coordenador (P8061) | D28: mês | E28: =SUM(F28:U28) -> 0.75 | G28: 0.5 | H28: 0.25
A29: 2 | B29: P3 | C29: Advogado junior (P8001) | D29: mês | E29: =SUM(F29:U29) -> 1 | G29: 0.5 | H29: 0.5
A30: 2 | B30: P0 | C30: Engenheiro senior (P8056) | D30: mês | E30: 1 | G30: 0.5 | H30: 0.5
A31: 2 | B31: D | C31: Desenhista (40807) | D31: mês | E31: 1 | G31: 0.5 | H31: 0.5
A32: 2 | B32: T1 | C32: Topógrafo (P8163) | D32: mês | E32: 1 | G32: 0.5 | H32: 0.5
A33: 2 | B33: A4 | C33: Auxiliar de Topografia (P8028) | D33: mês | E33: 2 | G33: =G32*2 -> 1 | H33: =H32*2 -> 1
A34: 2 | B34: A0 | C34: Secretária (P8135) | D34: mês | E34: 1.5 | G34: 1 | H34: 0.5
A35: 2 | B35: A3 | C35: Auxiliar Administrativo (P8026) | D35: mês | E35: 1.5 | G35: 1 | H35: 0.5
A36: 2 | B36: T2 | C36: Assistente Social junior (P8019) | D36: mês | E36: 10 | G36: 5 | H36: 5
A37: 2 | B37: M1 | C37: Relatório Parcial | D37: un | E37: 1 | G37: 1
A38: 2 | B38: M2 | C38: Relatório Final | D38: un | E38: 0 | H38: 0
A39: 2 | C39: =C5 -> Etapa 2 - Cadastro físico, jurídico e social das terras e benfeitorias
A41: 3 | B41: C | C41: Advogado coordenador (P8061) | D41: mês | E41: =SUM(F41:U41) -> 0.5 | H41: 0.25 | I41: 0.25
A42: 3 | B42: P3 | C42: Advogado junior (P8001) | D42: mês | E42: =SUM(F42:U42) -> 0
A43: 3 | B43: P0 | C43: Engenheiro senior (P8056) | D43: mês | E43: 1 | H43: 0.5 | I43: 0.5
A44: 3 | B44: D | C44: Desenhista (40807) | D44: mês | E44: 1 | H44: 0.5 | I44: 0.5
A45: 3 | B45: T1 | C45: Topógrafo (P8163) | D45: mês | E45: 1 | H45: 0.5 | I45: 0.5
A46: 3 | B46: A4 | C46: Auxiliar de Topografia (P8028) | D46: mês | E46: 2 | H46: =H45*2 -> 1 | I46: =I45*2 -> 1
A47: 3 | B47: A0 | C47: Secretária (P8135) | D47: mês | E47: 1 | H47: 0.5 | I47: 0.5
A48: 3 | B48: A3 | C48: Auxiliar Administrativo (P8026) | D48: mês | E48: 1 | H48: 0.5 | I48: 0.5
A49: 3 | B49: T2 | C49: Assistente Social junior (P8019) | D49: mês | E49: 0
A50: 3 | B50: M1 | C50: Relatório Parcial | D50: un | E50: 1 | H50: 1
A51: 3 | B51: M2 | C51: Relatório Final | D51: un | E51: 0
A52: 3 | C52: =C6 -> Etapa 3 – Avaliação das terras e benfeitorias levantadas na etapa 2
A54: 4 | B54: C | C54: Advogado coordenador (P8061) | D54: mês | E54: =SUM(F54:U54) -> 0.375 | I54: 0.125 | J54: 0.25
A55: 4 | B55: P3 | C55: Advogado junior (P8001) | D55: mês | E55: =SUM(F55:U55) -> 0.5 | I55: 0.25 | J55: 0.25
A56: 4 | B56: P0 | C56: Engenheiro senior (P8056) | D56: mês | E56: 1 | I56: 0.5 | J56: 0.5
A57: 4 | B57: D | C57: Desenhista (40807) | D57: mês | E57: 1 | I57: 0.5 | J57: 0.5
A58: 4 | B58: T1 | C58: Topógrafo (P8163) | D58: mês | E58: 1 | I58: 0.5 | J58: 0.5
A59: 4 | B59: A4 | C59: Auxiliar de Topografia (P8028) | D59: mês | E59: 2 | I59: =I58*2 -> 1 | J59: 1
A60: 4 | B60: A0 | C60: Secretária (P8135) | D60: mês | E60: 0.75 | I60: 0.25 | J60: 0.5
A61: 4 | B61: A3 | C61: Auxiliar Administrativo (P8026) | D61: mês | E61: 0.75 | I61: 0.25 | J61: 0.5
A62: 4 | B62: T2 | C62: Assistente Social junior (P8019) | D62: mês | E62: 4 | I62: 2 | J62: 2
A63: 4 | B63: M1 | C63: Relatório Parcial | D63: un | E63: 1 | I63: 1
A64: 4 | B64: M2 | C64: Relatório Final | D64: un | E64: 0
A65: 4 | C65: =C7 -> Etapa 4 - Cadastro físico, jurídico e social de terras para possíveis remanejamentos
A67: 5 | B67: C | C67: Advogado coordenador (P8061) | D67: mês | E67: =SUM(F67:U67) -> 0.375 | J67: 0.125 | K67: 0.25
A68: 5 | B68: P3 | C68: Advogado junior (P8001) | D68: mês | E68: =SUM(F68:U68) -> 0
A69: 5 | B69: P0 | C69: Engenheiro senior (P8056) | D69: mês | E69: 1 | J69: 0.5 | K69: 0.5
A70: 5 | B70: D | C70: Desenhista (40807) | D70: mês | E70: 1 | J70: 0.5 | K70: 0.5
A71: 5 | B71: T1 | C71: Topógrafo (P8163) | D71: mês | E71: 1 | J71: 0.5 | K71: 0.5
A72: 5 | B72: A4 | C72: Auxiliar de Topografia (P8028) | D72: mês | E72: 2 | J72: =J71*2 -> 1 | K72: 1
A73: 5 | B73: A0 | C73: Secretária (P8135) | D73: mês | E73: 0.75 | J73: 0.25 | K73: 0.5
A74: 5 | B74: A3 | C74: Auxiliar Administrativo (P8026) | D74: mês | E74: 0.75 | J74: 0.25 | K74: 0.5
A75: 5 | B75: T2 | C75: Assistente Social junior (P8019) | D75: mês | E75: 0
A76: 5 | B76: M1 | C76: Relatório Parcial | D76: un | E76: 1 | J76: 1
A77: 5 | B77: M2 | C77: Relatório Final | D77: un | E77: 0
A78: 5 | C78: =C8 -> Etapa 5 - Avaliação das terras e benfeitorias levantadas na etapa 4
A80: 6 | B80: C | C80: Advogado coordenador (P8061) | D80: mês | E80: =SUM(F80:U80) -> 0.5 | I80: 0.125 | J80: 0.125 | K80: 0.25
A81: 6 | B81: P3 | C81: Advogado junior (P8001) | D81: mês | E81: =SUM(F81:U81) -> 0.75 | I81: 0.25 | J81: 0.25 | K81: 0.25
A82: 6 | B82: P0 | C82: Engenheiro senior (P8056) | D82: mês | E82: 0
A83: 6 | B83: D | C83: Desenhista (40807) | D83: mês | E83: 0
A84: 6 | B84: T1 | C84: Topógrafo (P8163) | D84: mês | E84: 0
A85: 6 | B85: A4 | C85: Auxiliar de Topografia (P8028) | D85: mês | E85: 0
A86: 6 | B86: A0 | C86: Secretária (P8135) | D86: mês | E86: 1 | I86: 0.25 | J86: 0.25 | K86: 0.5
A87: 6 | B87: A3 | C87: Auxiliar Administrativo (P8026) | D87: mês | E87: 1 | I87: 0.25 | J87: 0.25 | K87: 0.5
A88: 6 | B88: T2 | C88: Assistente Social junior (P8019) | D88: mês | E88: 15 | I88: 5 | J88: 5 | K88: 5
A89: 6 | B89: M1 | C89: Relatório Parcial | D89: un | E89: 2 | I89: 1 | J89: 1
A90: 6 | B90: M2 | C90: Relatório Final | D90: un | E90: 0
A91: 6 | C91: =C9 -> Etapa 6 - Cadastro socioeconômico da região
A93: 7 | B93: C | C93: Advogado coordenador (P8061) | D93: mês | E93: =SUM(F93:U93) -> 3.5 | L93: 0.5 | M93: 0.75 | N93: 0.75 | O93: 0.75 | P93: 0.75
A94: 7 | B94: P3 | C94: Advogado junior (P8001) | D94: mês | E94: =SUM(F94:U94) -> 2.5 | L94: 0.5 | M94: 0.5 | N94: 0.5 | O94: 0.5 | P94: 0.5
A95: 7 | B95: P0 | C95: Engenheiro senior (P8056) | D95: mês | E95: 4 | L95: 1 | M95: 1 | N95: 1 | O95: 1
A96: 7 | B96: D | C96: Desenhista (40807) | D96: mês | E96: 4 | L96: 1 | M96: 1 | N96: 1 | O96: 1
A97: 7 | B97: T1 | C97: Topógrafo (P8163) | D97: mês | E97: 4 | L97: 1 | M97: 1 | N97: 1 | O97: 1
A98: 7 | B98: A4 | C98: Auxiliar de Topografia (P8028) | D98: mês | E98: 8 | L98: =L97*2 -> 2 | M98: 2 | N98: 2 | O98: 2
A99: 7 | B99: A0 | C99: Secretária (P8135) | D99: mês | E99: 5 | L99: 1 | M99: 1 | N99: 1 | O99: 1 | P99: 1
A100: 7 | B100: A3 | C100: Auxiliar Administrativo (P8026) | D100: mês | E100: 5 | L100: 1 | M100: 1 | N100: 1 | O100: 1 | P100: 1
A101: 7 | B101: T2 | C101: Assistente Social junior (P8019) | D101: mês | E101: 5 | L101: 1 | M101: 1 | N101: 1 | O101: 1 | P101: 1
A102: 7 | B102: M1 | C102: Relatório Parcial | D102: un | E102: 4 | L102: 1 | M102: 1 | N102: 1 | O102: 1
A103: 7 | B103: M2 | C103: Relatório Final | D103: un | E103: 0
A104: 7 | C104: =C10 -> Etapa 7 - Plano de Negociação e Projeto Executivo de Remanejamento da População Local
A106: 8 | B106: C | C106: Advogado coordenador (P8061) | D106: mês | E106: =SUM(F106:U106) -> 3.5 | Q106: 0.5 | R106: 0.75 | S106: 0.75 | T106: 0.75 | U106: 0.75
A107: 8 | B107: P3 | C107: Advogado junior (P8001) | D107: mês | E107: =SUM(F107:U107) -> 1.25 | Q107: 0.25 | R107: 0.25 | S107: 0.25 | T107: 0.25 | U107: 0.25
A108: 8 | B108: P0 | C108: Engenheiro senior (P8056) | D108: mês | E108: 0
A109: 8 | B109: D | C109: Desenhista (40807) | D109: mês | E109: 0
A110: 8 | B110: T1 | C110: Topógrafo (P8163) | D110: mês | E110: 0
A111: 8 | B111: A4 | C111: Auxiliar de Topografia (P8028) | D111: mês | E111: 0
A112: 8 | B112: A0 | C112: Secretária (P8135) | D112: mês | E112: 5 | Q112: 1 | R112: 1 | S112: 1 | T112: 1 | U112: 1
A113: 8 | B113: A3 | C113: Auxiliar Administrativo (P8026) | D113: mês | E113: 5 | Q113: 1 | R113: 1 | S113: 1 | T113: 1 | U113: 1
A114: 8 | B114: T2 | C114: Assistente Social junior (P8019) | D114: mês | E114: 0
A115: 8 | B115: M1 | C115: Relatório Parcial | D115: un | E115: 4 | Q115: 1 | R115: 1 | S115: 1 | T115: 1
A116: 8 | B116: M2 | C116: Relatório Final | D116: un | E116: 1 | U116: 1
A117: 8 | C117: =C11 -> Etapa 8 - Operação das ações sociais e de regularização fundiária | D117: un | E117: =SUM(S117:U117) -> 0
A118: Total
C122: Advogado coordenador (P8061) | D122: =E15+E28+E41+E54+E67+E80+E93+E106 -> 10
C123: Advogado junior (P8001) | D123: =E16+E29+E42+E55+E68+E81+E94+E107 -> 6
C124: Engenheiro senior (P8056) | D124: 8
C125: Desenhista (40807) | D125: 8
C126: Topógrafo (P8163) | D126: 8
C127: Auxiliar de Topografia (P8028) | D127: 16
C128: Secretária (P8135) | D128: 16
C129: Auxiliar Administrativo (P8026) | D129: 16
C130: Assistente Social junior (P8019) | D130: 39
C131: Relatório Parcial | D131: 14
C132: Relatório Final | D132: 1
D133: =SUM(D122:D132) -> 142

Sheet COT. VANT (hidden)
A2: COTAÇÃO ORÇAMENTÁRIA DE LEVANTAMENTO PLANIALTIMÉTRICO POR MEIO DE VANT PARA ÁREA NA CIDADE DE PINDARÉ-MIRIM-MA
A3: MÊS/ANO DE REFERÊNCIA | B3: ÁREA DO PROJETO [ha] | C3: EMPRESA | D3: LOCALIDADE | E3: WEBSITE | F3: CONTATO | G3: AVALIAÇÃO TÉCNICA DA PROPOSTA | H3: PREÇO | I3: PREÇO UNITÁRIO | J3: RELAÇÃO CUSTO-BENEFÍCIO
A4: 2022-09-01 | B4: 50 | C4: DRONES SOLUTION | D4: SALVADOR-BA | E4: http://www.dronessolution.com.br/ | F4: contato@dronessolution.com.br | G4: SATISFATÓRIA | H4: 9800 | I4: =(H4/B4) -> 196 | J4: A
A5: 2022-09-01 | B5: 50 | C5: ERG | D5: BELO HORIZONTE-MG | E5: http://www.ergbh.com.br/ | F5: comercial@ergbh.com.br | G5: SATISFATÓRIA | H5: 13240.5 | I5: =(H5/B5) -> 264.81 | J5: B
A6: 2022-09-01 | B6: 50 | C6: CEPEMAR | D6: VITÓRIA-ES | E6: http://www.cepemar.com.br/ | F6: comercial@cepemar.com.br | G6: SATISFATÓRIA | H6: 63000 | I6: 1260 | J6: C
A8: Observações | B8: 1. Na cotação acima já estão iclusos: Planejamento Aerotogramétrico, Voo Aerotoforamétrico, Apoio de Campo, Aerotriangulação, Restituição, MDT, MDS, Ortofotos, Edição/Revisão e Entrega Final. | G8: CV com todos valores: | H8: =STDEVA(H4:H6)/AVERAGE(H4:H6) -> 1.038054932
B9: 2. INCONCLUSIVA: não apresentou o orçamento de forma detalhada. | G9: CV tirando o maior valor: | H9: =STDEVA(H4:H5)/AVERAGE(H4:H5) -> 0.2111760492
B10: 3. SATISFATÓRIA: apresentou, no mínimo, os requisitos básicos de um orçamento. | G10: Média tirando o maior valor: | H10: =AVERAGE(H4:H5) -> 11520.25 | I10: Valor para a área de 65ha
B11: 4-Para o valor do serviço de Vant, considerou-se a média tirando o maior valor das cotações recebidas, pois o CV (coeficiente de variação) está muito elevado com as 3 cotaçoes.
B12: 5-As cotações recebidas foram utilizadas para o serviço de levantamento do Ramal do Manga no Amapá, referente a um trecho de 6,5km de rodovia, com área total estimadade de 65ha.
B13: Dessa forma, para a cotação representativa deste serviço, realizou-se a parametrização proporcional a área de estudo do serviço a ser realizado.
B15: Portanto:
C16: =I10 -> Valor para a área de 65ha | D16: =H10 -> 11520.25
C17: Valor unitário para a área de 1ha | D17: =D16/65 -> 177.2346154
